bitfinex/quotes_BTCUSD_20240827
["timestamp","ask_amount","ask_price","bid_price","bid_amount"]
[1724718613277,0.001,63057.0,63053.0,0.15617801]
[1724718614042,0.159587,63057.0,63053.0,0.15617801]
[1724718614996,0.001,63057.0,63054.0,0.15617801]
[1724718615324,0.003,63057.0,63054.0,0.15617801]
[1724718615523,0.003,63057.0,63054.0,0.31477101]
[1724718615724,0.003,63057.0,63054.0,0.15617801]
[1724718615940,0.001,63057.0,63054.0,0.15617801]
[1724718616140,0.158583,63059.0,63054.0,0.31477101]
[1724718616327,0.002,63057.0,63055.0,0.0783]
[1724718616523,0.003,63057.0,63056.0,0.15617801]
[1724718616984,0.001,63057.0,63056.0,0.15617801]
[1724718617955,0.004,63059.0,63056.0,0.15617801]
[1724718618189,0.162581,63059.0,63056.0,0.15617801]
[1724718618437,0.001,63057.0,63056.0,0.15617801]
[1724718618937,0.003,63057.0,63056.0,0.15617801]
[1724718619187,0.002,63057.0,63056.0,0.15617801]
[1724718619616,0.160586,63057.0,63056.0,0.15617801]
[1724718620047,0.15859,63056.0,63054.0,0.00564656]
[1724718620255,0.158593,63055.0,63052.0,0.1403]
[1724718620450,0.158593,63055.0,63053.0,0.15617801]
[1724718621018,0.158589,63056.0,63053.0,0.15617801]
[1724718621220,0.158592,63055.0,63053.0,0.15617801]
[1724718621777,0.158592,63055.0,63053.0,0.15717801]
[1724718621984,0.158589,63056.0,63053.0,0.15717801]
[1724718622206,0.158586,63057.0,63053.0,0.15717801]
[1724718622360,0.158589,63056.0,63053.0,0.15717801]
[1724718622575,0.159589,63056.0,63053.0,0.15717801]
[1724718623022,0.158589,63056.0,63053.0,0.15717801]
[1724718623218,0.159589,63056.0,63053.0,0.15717801]
[1724718624040,0.001,63056.0,63053.0,0.15717801]
[1724718624240,0.001,63056.0,63053.0,0.15617801]
[1724718625471,0.001,63056.0,63055.0,1.04689216]
[1724718625681,0.001,63056.0,63055.0,1.20307017]
[1724718626268,0.158566,63065.0,63059.0,0.158579]
[1724718626464,0.158564,63066.0,63060.0,0.301078]
[1724718626670,0.158567,63065.0,63060.0,0.301078]
[1724718628116,0.168567,63065.0,63060.0,0.301078]
[1724718628679,0.01,63065.0,63060.0,0.301078]
[1724718628990,0.01,63065.0,63061.0,0.31475301]
[1724718629166,0.021,63065.0,63062.0,0.158573]
[1724718629597,0.01,63065.0,63062.0,0.158573]
[1724718629806,0.01,63065.0,63063.0,0.15857]
[1724718630007,0.021,63065.0,63062.0,0.158571]
[1724718630324,0.15856,63068.0,63063.0,0.158571]
[1724718630527,0.15856,63068.0,63062.0,0.158573]
[1724718630888,0.021,63065.0,63062.0,0.158573]
[1724718631121,0.011,63065.0,63062.0,0.158573]
[1724718631298,0.021,63065.0,63062.0,0.158573]
[1724718631731,0.011,63065.0,63062.0,0.158573]
[1724718632141,0.013,63068.0,63061.0,0.15617801]
[1724718632498,0.013,63068.0,63064.0,0.158567]
[1724718632929,0.027,63068.0,63064.0,0.158567]
[1724718633124,0.027,63068.0,63065.0,0.158565]
[1724718633326,0.027,63068.0,63067.0,0.1425]
[1724718633529,0.013,63068.0,63067.0,0.1425]
[1724718633758,0.014,63068.0,63067.0,0.1425]
[1724718634161,0.027,63068.0,63067.0,0.1425]
[1724718634363,0.1324,63067.0,63060.0,0.06614371]
[1724718634534,0.1324,63067.0,63049.0,0.000823]
[1724718634535,0.0806,63066.0,63054.0,0.0605]
[1724718634738,0.158586,63058.0,63057.0,0.001]
[1724718635139,0.158591,63056.0,63055.0,0.001]
[1724718635380,0.158585,63058.0,63054.0,0.001]
[1724718635585,0.158585,63058.0,63052.0,0.258598]
[1724718635586,0.475782,63054.0,63049.0,0.000823]
[1724718635794,0.92537,63054.0,63049.0,0.000823]
[1724718635994,1.39973601,63054.0,63049.0,0.000823]
[1724718636224,1.73992401,63054.0,63049.0,0.000823]
[1724718636867,1.11121,63051.0,63049.0,0.000823]
[1724718637071,1.70129671,63051.0,63049.0,0.000823]
[1724718637200,2.01849971,63051.0,63049.0,0.000823]
[1724718637628,2.3113348,63051.0,63049.0,0.000823]
[1724718638567,2.34319441,63051.0,63049.0,0.000823]
[1724718638913,1.110228,63050.0,63049.0,0.00038973]
[1724718639119,1.42606309,63050.0,63049.0,0.00038973]
[1724718639920,1.40306309,63050.0,63049.0,0.00038973]
[1724718640510,1.40806309,63050.0,63049.0,0.00038973]
[1724718641226,1.40758657,63050.0,63049.0,0.00038973]
[1724718641430,1.41358657,63050.0,63049.0,0.00038973]
[1724718642426,1.43658657,63050.0,63049.0,0.00038973]
[1724718643782,1.43158657,63050.0,63049.0,0.00038973]
[1724718643973,1.44558657,63050.0,63049.0,0.00038973]
[1724718644207,1.56395959,63050.0,63049.0,0.00038973]
[1724718644405,1.54995959,63050.0,63049.0,0.00038973]
[1724718644604,1.56395959,63050.0,63049.0,0.00038973]
[1724718644917,1.55795959,63050.0,63049.0,0.00038973]
[1724718645090,1.43958657,63050.0,63049.0,0.00038973]
[1724718645288,1.45358657,63050.0,63049.0,0.00038973]
[1724718645551,1.54826563,63050.0,63049.0,0.00038973]
[1724718645928,1.53426563,63050.0,63049.0,0.00038973]
[1724718646139,1.54826563,63050.0,63049.0,0.00038973]
[1724718646427,1.35527367,63050.0,63049.0,0.00038973]
[1724718646848,1.36927367,63050.0,63049.0,0.00038973]
[1724718647043,1.35527367,63050.0,63049.0,0.00038973]
[1724718647249,1.147228,63050.0,63049.0,0.00038973]
[1724718647451,1.23221049,63050.0,63049.0,0.00038973]
[1724718648012,1.54941849,63050.0,63049.0,0.00038973]
[1724718650269,1.50329603,63050.0,63049.0,0.00038973]
[1724718651172,1.55059034,63050.0,63049.0,0.00038973]
[1724718651954,1.62989034,63050.0,63049.0,0.00038973]
[1724718652120,1.63079674,63050.0,63049.0,0.00038973]
[1724718654232,1.58350243,63050.0,63049.0,0.00038973]
[1724718654994,1.88359899,63050.0,63049.0,0.00038973]
[1724718655195,1.58350243,63050.0,63049.0,0.00038973]
[1724718655372,1.88290011,63050.0,63049.0,0.00038973]
[1724718655792,1.88251997,63050.0,63049.0,0.00038973]
[1724718656158,1.58350243,63050.0,63049.0,0.00038973]
[1724718657211,1.65439119,63050.0,63049.0,0.00038973]
[1724718661029,2.1805772,63050.0,63049.0,0.00038973]
[1724718661149,2.10968844,63050.0,63049.0,0.00038973]
[1724718661353,2.31342182,63050.0,63049.0,0.00038973]
[1724718662116,2.10968844,63050.0,63049.0,0.00038973]
[1724718662290,2.18051481,63050.0,63049.0,0.00038973]
[1724718664160,2.18050853,63050.0,63049.0,0.00038973]
[1724718664516,1.73968044,63050.0,63049.0,0.00038973]
[1724718668023,1.66038044,63050.0,63049.0,0.00038973]
[1724718670107,1.77189859,63050.0,63049.0,0.00038973]
[1724718673209,1.81911428,63050.0,63049.0,0.00038973]
[1724718673703,1.81915216,63050.0,63049.0,0.00038973]
[1724718674321,1.77189859,63050.0,63049.0,0.00038973]
[1724718675287,1.84277895,63050.0,63049.0,0.00038973]
[1724718675690,1.77189859,63050.0,63049.0,0.00038973]
[1724718676068,1.97711253,63050.0,63049.0,0.00038973]
[1724718678529,1.97711253,63050.0,63039.0,0.000823]
[1724718678530,1.563138,63041.0,63039.0,0.000823]
[1724718678743,0.318334,63025.0,63024.0,0.00824]
[1724718678950,1.89773723,63025.0,63024.0,0.00824]
[1724718679145,1.89773723,63025.0,63013.0,0.0642]
[1724718679146,0.001,63022.0,63013.0,0.0642]
[1724718679300,1.26777619,63021.0,63000.0,0.001]
[1724718679498,1.26777619,63021.0,63006.0,0.1428]
[1724718679499,2.42553819,63021.0,63006.0,0.1428]
[1724718679703,2.70238383,63021.0,63006.0,0.1428]
[1724718680257,2.86129297,63021.0,63006.0,0.1428]
[1724718680693,2.61573866,63021.0,63006.0,0.1428]
[1724718680897,2.56881195,63021.0,63006.0,0.1428]
[1724718681430,2.58281195,63021.0,63006.0,0.1428]
[1724718681631,2.59681195,63021.0,63006.0,0.1428]
[1724718682074,2.58281195,63021.0,63006.0,0.1428]
[1724718682678,2.49476332,63021.0,63006.0,0.1428]
[1724718682861,2.28906829,63021.0,63006.0,0.1428]
[1724718684204,2.40724744,63021.0,63006.0,0.1428]
[1724718684420,2.40725426,63021.0,63006.0,0.1428]
[1724718684747,2.39759754,63021.0,63006.0,0.1428]
[1724718685111,2.30306829,63021.0,63006.0,0.1428]
[1724718685289,2.42125426,63021.0,63006.0,0.1428]
[1724718685468,2.30306829,63021.0,63006.0,0.1428]
[1724718686176,2.39755783,63021.0,63006.0,0.1428]
[1724718686388,2.30306829,63021.0,63006.0,0.1428]
[1724718686599,2.39756931,63021.0,63006.0,0.1428]
[1724718687244,2.71492331,63021.0,63006.0,0.1428]
[1724718687447,2.62042229,63021.0,63006.0,0.1428]
[1724718687653,2.71507127,63021.0,63006.0,0.1428]
[1724718687804,2.71507474,63021.0,63006.0,0.1428]
[1724718688015,2.87120642,63021.0,63006.0,0.1428]
[1724718688222,2.77670413,63021.0,63006.0,0.1428]
[1724718688767,2.71506409,63021.0,63006.0,0.1428]
[1724718689132,2.39771009,63021.0,63006.0,0.1428]
[1724718689336,2.03157128,63021.0,63017.0,0.0624]
[1724718689539,2.07881761,63021.0,63017.0,0.0624]
[1724718689850,2.03157128,63021.0,63017.0,0.0624]
[1724718690638,2.03057128,63021.0,63017.0,0.0624]
[1724718690838,2.03157128,63021.0,63017.0,0.0624]
[1724718691264,2.03057128,63021.0,63017.0,0.0624]
[1724718693490,2.03157128,63021.0,63017.0,0.0624]
[1724718693875,2.03057128,63021.0,63017.0,0.0624]
[1724718695560,2.03157128,63021.0,63017.0,0.0624]
[1724718697380,2.2730267,63021.0,63007.0,0.0624]
[1724718697582,2.2730267,63021.0,63006.0,0.081]
[1724718697583,0.158725,63002.0,63001.0,0.1434]
[1724718697789,0.74660229,63002.0,63001.0,0.1434]
[1724718698069,0.76960229,63002.0,63001.0,0.1434]
[1724718698190,1.08705229,63002.0,63001.0,0.1434]
[1724718698800,1.09105229,63002.0,63001.0,0.1434]
[1724718699217,1.09405229,63002.0,63001.0,0.1434]
[1724718700943,0.823625,63002.0,63001.0,0.1434]
[1724718702208,1.141075,63002.0,63001.0,0.1434]
[1724718702549,0.823625,63002.0,63001.0,0.1434]
[1724718705611,1.141075,63002.0,63001.0,0.1434]
[1724718705822,0.823625,63002.0,63001.0,0.1434]
[1724718706222,0.93180436,63002.0,63001.0,0.1434]
[1724718706560,1.24925436,63002.0,63001.0,0.1434]
[1724718710586,1.27413092,63002.0,63001.0,0.1434]
[1724718711441,1.27413092,63002.0,63001.0,0.144224]
[1724718712140,0.95668092,63002.0,63001.0,0.144224]
[1724718712493,0.93368092,63002.0,63001.0,0.144224]
[1724718712872,0.90880436,63002.0,63001.0,0.144224]
[1724718719289,0.800625,63002.0,63001.0,0.144224]
[1724718719496,0.90880436,63002.0,63001.0,0.144224]
[1724718719989,0.59135436,63002.0,63001.0,0.144224]
[1724718721802,0.90880436,63002.0,63001.0,0.144224]
[1724718723262,0.59135436,63002.0,63001.0,0.144224]
[1724718723807,0.90880436,63002.0,63001.0,0.144224]
[1724718724018,0.59135436,63002.0,63001.0,0.144224]
[1724718724189,0.59135436,63002.0,63001.0,0.303951]
[1724718724190,0.007,63002.0,63001.0,0.303951]
[1724718724372,0.007,63002.0,63001.0,0.145224]
[1724718724572,0.007,63002.0,63001.0,0.14978831]
[1724718724773,0.007,63002.0,63001.0,0.30851531]
[1724718725197,0.007,63002.0,63001.0,0.14978831]
[1724718728971,0.15872,63004.0,63001.0,0.14978831]
[1724718729094,0.15872,63004.0,63002.0,0.1439]
[1724718729296,0.04752404,63006.0,63002.0,0.078]
[1724718729485,0.158718,63005.0,63003.0,0.0659]
[1724718729685,0.158718,63005.0,63004.0,0.1439]
[1724718731109,0.003,63005.0,63004.0,0.30262]
[1724718731572,0.005,63005.0,63004.0,0.30262]
[1724718731775,0.005,63005.0,63004.0,0.62006]
[1724718731978,0.04752404,63009.0,63004.0,0.31744]
[1724718732192,0.22998806,63011.0,63007.0,0.0827]
[1724718732193,0.20622904,63010.0,63007.0,0.0827]
[1724718732328,0.20622904,63010.0,63008.0,0.064]
[1724718732558,0.20622904,63010.0,63009.0,0.1467]
[1724718733581,0.20622261,63010.0,63009.0,0.1467]
[1724718733981,0.04751761,63010.0,63009.0,0.72847137]
[1724718734183,0.0009064,63019.0,63009.0,0.58177137]
[1724718734407,0.0009064,63019.0,63018.0,1.36567036]
[1724718734609,0.0009064,63019.0,63018.0,1.52184837]
[1724718735073,0.0009064,63023.0,63022.0,0.793372]
[1724718735257,0.0009064,63023.0,63022.0,1.20442937]
[1724718735480,0.0009064,63023.0,63022.0,1.52177837]
[1724718737014,0.0019064,63023.0,63022.0,1.52177837]
[1724718737681,0.0029064,63023.0,63022.0,1.52377837]
[1724718737841,0.0029064,63023.0,63022.0,1.52177837]
[1724718737842,0.0019064,63023.0,63022.0,1.52177837]
[1724718738182,0.0019064,63023.0,63022.0,1.41359901]
[1724718738383,0.0019064,63023.0,63022.0,1.41559901]
[1724718738384,0.0029064,63023.0,63022.0,1.41559901]
[1724718738794,0.0029064,63023.0,63022.0,1.42107317]
[1724718750350,0.0029064,63023.0,63022.0,1.52107317]
[1724718754750,0.1615784,63023.0,63022.0,0.25417416]
[1724718754954,0.4789224,63023.0,63022.0,0.002]
[1724718755160,0.7962664,63023.0,63022.0,0.002]
[1724718755577,1.2435104,63023.0,63022.0,0.002]
[1724718756626,1.110756,63020.0,63019.0,0.000824]
[1724718756869,1.187956,63020.0,63019.0,0.000824]
[1724718758185,1.188956,63020.0,63019.0,0.000824]
[1724718760074,1.190956,63020.0,63019.0,0.000824]
[1724718762711,0.873597,63020.0,63019.0,0.000824]
[1724718768191,0.796397,63020.0,63019.0,0.000824]
[1724718768432,0.003,63020.0,63019.0,0.141324]
[1724718768641,0.003,63020.0,63019.0,0.30551727]
[1724718768837,0.003,63020.0,63019.0,0.141324]
[1724718769393,0.001,63020.0,63019.0,0.141324]
[1724718769597,0.002,63020.0,63019.0,0.141324]
[1724718770117,0.001,63020.0,63019.0,0.141324]
[1724718770322,0.0009064,63020.0,63019.0,0.141324]
[1724718770520,0.0019064,63020.0,63019.0,0.141324]
[1724718771120,0.0019064,63020.0,63019.0,0.142324]
[1724718771284,0.0029064,63020.0,63019.0,0.142324]
[1724718771500,0.0029064,63020.0,63019.0,0.141324]
[1724718771501,0.0019064,63020.0,63019.0,0.141324]
[1724718771707,0.0019064,63020.0,63019.0,0.142324]
[1724718771949,0.0019064,63020.0,63019.0,0.61837]
[1724718772364,0.0029064,63020.0,63019.0,0.61837]
[1724718772957,0.0019064,63020.0,63019.0,0.61837]
[1724718773292,0.0029064,63020.0,63019.0,0.61837]
[1724718773490,0.0019064,63020.0,63019.0,1.09653956]
[1724718773691,0.0019064,63020.0,63019.0,1.09753956]
[1724718773692,0.0009064,63020.0,63019.0,1.09753956]
[1724718774109,0.0009064,63020.0,63019.0,1.09653956]
[1724718774334,0.0019064,63020.0,63019.0,1.09753956]
[1724718774849,0.0019064,63020.0,63019.0,1.41490356]
[1724718775051,0.0019064,63020.0,63019.0,1.09753956]
[1724718775277,0.0009064,63020.0,63019.0,1.09653956]
[1724718775688,0.0019064,63020.0,63019.0,1.09653956]
[1724718776284,0.0009064,63020.0,63019.0,1.09653956]
[1724718776486,0.0019064,63020.0,63019.0,1.09753956]
[1724718776747,0.0029064,63020.0,63019.0,1.09753956]
[1724718778916,0.0029064,63020.0,63019.0,1.41490356]
[1724718779149,0.0029064,63020.0,63019.0,1.09753956]
[1724718780807,0.0029064,63020.0,63019.0,1.41490356]
[1724718782210,0.0029064,63020.0,63019.0,1.09753956]
[1724718783405,0.0029064,63020.0,63019.0,0.46281156]
[1724718784342,0.0029064,63020.0,63019.0,0.22722956]
[1724718784692,0.0029064,63020.0,63019.0,0.16362956]
[1724718785078,0.0019064,63020.0,63019.0,0.16362956]
[1724718785530,0.0029064,63020.0,63019.0,0.16362956]
[1724718785935,0.0019064,63020.0,63019.0,0.16362956]
[1724718786189,0.0009064,63020.0,63019.0,0.16262956]
[1724718786431,0.0029064,63020.0,63019.0,0.16362956]
[1724718791604,0.0019064,63020.0,63019.0,0.16362956]
[1724718792265,0.0009064,63020.0,63019.0,0.16262956]
[1724718792461,0.0009064,63020.0,63019.0,0.16362956]
[1724718793177,0.0009064,63020.0,63019.0,0.16462956]
[1724718793933,0.0009064,63020.0,63019.0,0.16262956]
[1724718794301,0.0019064,63020.0,63019.0,0.16362956]
[1724718795210,0.0029064,63020.0,63019.0,0.16362956]
[1724718797955,0.0029064,63020.0,63019.0,0.24682956]
[1724718806251,0.0029064,63020.0,63019.0,0.47121156]
[1724718808146,0.0029064,63020.0,63019.0,0.78857556]
[1724718813743,0.0029064,63020.0,63019.0,1.10593956]
[1724718824908,0.0029064,63020.0,63019.0,1.52330356]
[1724718825107,0.0029064,63020.0,63019.0,1.53820221]
[1724718825359,0.0009064,63023.0,63022.0,0.001]
[1724718825503,0.16663479,63037.0,63022.0,0.001]
[1724718825504,0.07141491,63049.0,63040.0,0.0815]
[1724718825687,0.45998582,63061.0,63049.0,0.874532]
[1724718825688,0.04760994,63053.0,63049.0,0.874532]
[1724718825889,0.0257669,63050.0,63049.0,1.09081001]
[1724718826176,0.0257669,63050.0,63049.0,1.40802301]
[1724718826177,0.0009064,63050.0,63049.0,1.40802301]
[1724718827298,0.0019064,63050.0,63049.0,1.40902301]
[1724718827417,0.0019064,63050.0,63049.0,1.41402301]
[1724718827418,0.0029064,63050.0,63049.0,1.41402301]
[1724718827620,0.0029064,63050.0,63049.0,1.41302301]
[1724718828221,0.0029064,63050.0,63049.0,1.40802301]
[1724718828222,0.0019064,63050.0,63049.0,1.40802301]
[1724718828873,0.0029064,63050.0,63049.0,1.42655287]
[1724718829934,0.0039064,63050.0,63049.0,1.43255287]
[1724718831502,0.0039064,63050.0,63049.0,1.11533987]
[1724718834606,0.0039064,63050.0,63049.0,0.18070787]
[1724718835818,0.0019064,63050.0,63049.0,0.16770787]
[1724718835972,0.0029064,63050.0,63049.0,0.17470787]
[1724718836807,0.0019064,63050.0,63049.0,0.16870787]
[1724718837164,0.0029064,63050.0,63049.0,0.17370787]
[1724718837572,0.0019064,63050.0,63049.0,0.16870787]
[1724718837976,0.0029064,63050.0,63049.0,0.17370787]
[1724718840820,0.4787184,63050.0,63049.0,0.012]
[1724718841020,0.7959264,63050.0,63049.0,0.012]
[1724718841644,0.7949264,63050.0,63049.0,0.007]
[1724718842263,0.7949264,63050.0,63047.0,0.00554978]
[1724718842264,0.475827,63048.0,63047.0,0.00554978]
[1724718842470,0.158609,63048.0,63043.0,0.1]
[1724718842668,0.1595114,63050.0,63044.0,0.47341201]
[1724718842871,0.158607,63049.0,63046.0,0.0807]
[1724718843078,0.3181194,63050.0,63046.0,0.0807]
[1724718843230,0.15861,63048.0,63046.0,0.0807]
[1724718843427,0.158612,63047.0,63045.0,0.1]
[1724718844262,0.158614,63046.0,63045.0,0.1]
[1724718844456,0.317219,63048.0,63045.0,0.104]
[1724718844660,0.158612,63047.0,63045.0,0.104]
[1724718845103,0.1331064,63050.0,63045.0,0.104]
[1724718845104,0.0775064,63050.0,63045.0,0.1]
[1724718845304,0.15861,63048.0,63046.0,0.002]
[1724718845507,0.15861,63048.0,63045.0,0.104]
[1724718846050,0.001,63047.0,63045.0,0.109]
[1724718846279,0.15861,63048.0,63045.0,0.104]
[1724718846492,0.158612,63047.0,63046.0,0.004]
[1724718846669,0.475824,63049.0,63046.0,0.004]
[1724718846842,0.475824,63049.0,63045.0,0.1]
[1724718847044,0.158612,63047.0,63045.0,0.108]
[1724718847708,0.158612,63047.0,63045.0,0.104]
[1724718847908,0.158612,63047.0,63045.0,0.004]
[1724718848081,0.158612,63047.0,63046.0,0.002]
[1724718848443,0.90453076,63047.0,63046.0,0.002]
[1724718848637,0.90453076,63047.0,63042.0,0.005542]
[1724718848638,0.793107,63043.0,63042.0,0.005542]
[1724718848860,0.158632,63039.0,63035.0,0.1]
[1724718849056,0.158634,63038.0,63036.0,0.15617801]
[1724718849261,0.158634,63038.0,63037.0,0.1]
[1724718849465,0.158632,63039.0,63037.0,0.1]
[1724718851189,0.317251,63042.0,63038.0,0.0784]
[1724718851368,0.317244,63043.0,63038.0,0.0784]
[1724718851588,0.158627,63041.0,63038.0,0.0784]
[1724718852351,0.001,63039.0,63038.0,0.0784]
[1724718852729,0.001,63039.0,63038.0,0.0804]
[1724718852938,0.001,63039.0,63038.0,0.0784]
[1724718853339,0.001,63039.0,63038.0,0.0824]
[1724718853676,0.158629,63040.0,63038.0,0.0784]
[1724718854020,0.001,63039.0,63038.0,0.0874]
[1724718854493,0.001,63039.0,63038.0,0.0844]
[1724718854856,0.001,63039.0,63038.0,0.0884]
[1724718855058,0.317244,63043.0,63038.0,0.0824]
[1724718855270,0.317251,63042.0,63038.0,0.0784]
[1724718855540,0.15963,63040.0,63038.0,0.0884]
[1724718855743,0.001,63039.0,63038.0,0.0834]
[1724718856151,0.002,63039.0,63038.0,0.0894]
[1724718856362,0.002,63039.0,63038.0,0.0834]
[1724718856363,0.001,63039.0,63038.0,0.0834]
[1724718856772,0.001,63039.0,63038.0,0.0864]
[1724718856979,0.159631,63039.0,63038.0,0.005]
[1724718857401,0.158631,63039.0,63037.0,0.1]
[1724718857577,0.158628,63041.0,63037.0,0.1]
[1724718857787,0.158628,63041.0,63038.0,0.002]
[1724718858007,0.158624,63042.0,63038.0,0.002]
[1724718858221,0.158624,63042.0,63039.0,0.0618]
[1724718858635,0.158627,63041.0,63039.0,0.0618]
[1724718859621,0.158627,63041.0,63039.0,0.0648]
[1724718859986,0.158627,63041.0,63039.0,0.0618]
[1724718860217,0.158627,63041.0,63039.0,0.0678]
[1724718860602,0.158628,63041.0,63039.0,0.0678]
[1724718860805,0.158628,63041.0,63039.0,0.0658]
[1724718861006,0.158628,63041.0,63039.0,0.0688]
[1724718861826,0.158628,63041.0,63039.0,0.0648]
[1724718862223,0.158628,63041.0,63039.0,0.0688]
[1724718862440,0.158628,63041.0,63039.0,0.0648]
[1724718862784,0.158624,63042.0,63039.0,0.0688]
[1724718863585,0.0009064,63041.0,63039.0,0.0688]
[1724718864204,0.0009064,63041.0,63039.0,0.0658]
[1724718864403,0.0009064,63041.0,63039.0,0.0678]
[1724718864916,0.1595324,63041.0,63039.0,0.0618]
[1724718865363,0.1595324,63041.0,63039.0,0.0648]
[1724718865568,0.1595324,63041.0,63039.0,0.0618]
[1724718866013,0.1595324,63041.0,63039.0,0.0658]
[1724718866369,0.1595324,63041.0,63039.0,0.0688]
[1724718866730,0.0009064,63041.0,63039.0,0.0688]
[1724718867729,0.1595334,63041.0,63039.0,0.0688]
[1724718869504,0.158629,63040.0,63039.0,0.0688]
[1724718869909,0.158629,63040.0,63039.0,0.007]
[1724718870136,0.96021776,63040.0,63039.0,0.007]
[1724718870347,1.16188909,63040.0,63039.0,0.004]
[1724718870552,1.63995489,63040.0,63039.0,0.004]
[1724718870793,1.54492933,63040.0,63039.0,0.008]
[1724718871120,1.66360067,63040.0,63039.0,0.008]
[1724718871250,0.158657,63029.0,63028.0,0.00559137]
[1724718871489,0.158657,63029.0,63027.0,0.1617]
[1724718872280,0.42876876,63033.0,63024.0,0.0617]
[1724718872281,0.158659,63028.0,63024.0,0.0617]
[1724718872480,0.19447276,63033.0,63023.0,0.000824]
[1724718872481,0.11147276,63026.0,63023.0,0.000824]
[1724718872720,0.848947,63024.0,63023.0,0.000824]
[1724718873112,0.92021186,63024.0,63023.0,0.000824]
[1724718873311,1.21377133,63024.0,63023.0,0.000824]
[1724718873513,1.166286,63024.0,63023.0,0.000824]
[1724718874091,0.848947,63024.0,63023.0,0.000824]
[1724718874468,0.797347,63024.0,63023.0,0.000824]
[1724718874666,1.114686,63024.0,63023.0,0.002824]
[1724718874878,1.114686,63024.0,63023.0,0.000824]
[1724718874879,0.797347,63024.0,63023.0,0.000824]
[1724718875294,0.800347,63024.0,63023.0,0.000824]
[1724718875658,0.796347,63024.0,63023.0,0.000824]
[1724718875853,0.799347,63024.0,63023.0,0.000824]
[1724718876053,1.120686,63024.0,63023.0,0.000824]
[1724718876529,0.803347,63024.0,63023.0,0.000824]
[1724718877136,1.116686,63024.0,63023.0,0.000824]
[1724718877539,1.120686,63024.0,63023.0,0.000824]
[1724718877930,1.114686,63024.0,63023.0,0.000824]
[1724718878307,1.117686,63024.0,63023.0,0.000824]
[1724718878727,1.113686,63024.0,63023.0,0.000824]
[1724718879085,0.797347,63024.0,63023.0,0.000824]
[1724718879470,0.800347,63024.0,63023.0,0.000824]
[1724718879886,1.117686,63024.0,63023.0,0.000824]
[1724718881848,1.113686,63024.0,63023.0,0.000824]
[1724718882247,1.114686,63024.0,63023.0,0.000824]
[1724718882451,1.117686,63024.0,63023.0,0.000824]
[1724718883125,0.800347,63024.0,63023.0,0.000824]
[1724718883878,1.117686,63024.0,63023.0,0.000824]
[1724718886106,1.14255358,63024.0,63023.0,0.000824]
[1724718889662,1.117686,63024.0,63023.0,0.000824]
[1724718894180,1.22927333,63024.0,63023.0,0.000824]
[1724718895991,0.800347,63024.0,63023.0,0.000824]
[1724718896190,0.007,63024.0,63023.0,0.144324]
[1724718896393,0.007,63024.0,63023.0,0.145324]
[1724718896394,0.165669,63024.0,63023.0,0.145324]
[1724718896585,0.483008,63024.0,63023.0,0.145324]
[1724718896854,0.483008,63024.0,63023.0,0.144324]
[1724718897085,0.800347,63024.0,63023.0,0.144324]
[1724718897546,0.793347,63024.0,63023.0,0.144324]
[1724718897851,0.800347,63024.0,63023.0,0.144324]
[1724718898295,0.796347,63024.0,63023.0,0.144324]
[1724718898442,0.795347,63024.0,63023.0,0.144324]
[1724718898643,0.795347,63024.0,63023.0,0.145324]
[1724718898969,0.793347,63024.0,63023.0,0.144324]
[1724718899431,0.794347,63024.0,63023.0,0.144324]
[1724718899782,0.7952534,63024.0,63023.0,0.144324]
[1724718899988,0.4779144,63024.0,63023.0,0.144324]
[1724718900172,0.7952534,63024.0,63023.0,0.144324]
[1724718900387,0.4779144,63024.0,63023.0,0.061124]
[1724718900590,0.7942534,63024.0,63023.0,0.000824]
[1724718900788,0.8745534,63024.0,63023.0,0.000824]
[1724718900983,1.42867041,63024.0,63023.0,0.000824]
[1724718901209,2.23179368,63024.0,63023.0,0.000824]
[1724718901467,1.91345468,63024.0,63023.0,0.001824]
[1724718901604,1.91345468,63024.0,63023.0,0.000824]
[1724718901805,1.91445468,63024.0,63023.0,0.000824]
[1724718901990,2.01745468,63024.0,63023.0,0.000824]
[1724718902193,2.01645468,63024.0,63023.0,0.000824]
[1724718902454,2.03832702,63024.0,63023.0,0.000824]
[1724718902654,2.05232702,63024.0,63023.0,0.000824]
[1724718903446,2.36966602,63024.0,63023.0,0.000824]
[1724718903648,2.05232702,63024.0,63023.0,0.000824]
[1724718903877,2.06632702,63024.0,63023.0,0.001824]
[1724718904077,2.308708,63024.0,63023.0,0.000824]
[1724718904508,2.322708,63024.0,63023.0,0.001824]
[1724718905359,2.336708,63024.0,63023.0,0.001824]
[1724718905796,2.34585121,63024.0,63023.0,0.001824]
[1724718906143,2.08947023,63024.0,63023.0,0.001824]
[1724718906306,2.35985121,63024.0,63023.0,0.001824]
[1724718906712,2.34585121,63024.0,63023.0,0.000824]
[1724718907140,2.35985121,63024.0,63023.0,0.001824]
[1724718907336,2.34585121,63024.0,63023.0,0.000824]
[1724718907617,2.35985121,63024.0,63023.0,0.000824]
[1724718907823,2.67719021,63024.0,63023.0,0.000824]
[1724718908056,2.35985121,63024.0,63023.0,0.000824]
[1724718908255,2.35985121,63024.0,63023.0,0.001824]
[1724718908679,2.34585121,63024.0,63023.0,0.000824]
[1724718908990,2.33185121,63024.0,63023.0,0.000824]
[1724718909392,2.34585121,63024.0,63023.0,0.000824]
[1724718909993,2.34585121,63024.0,63023.0,0.001824]
[1724718910194,2.67719021,63024.0,63023.0,0.001824]
[1724718910422,2.6631358,63024.0,63023.0,0.000824]
[1724718910699,2.6491358,63024.0,63023.0,0.001824]
[1724718910921,2.6631358,63024.0,63023.0,0.001824]
[1724718911133,2.6771358,63024.0,63023.0,0.000824]
[1724718911360,2.83339816,63024.0,63023.0,0.001824]
[1724718911578,2.83339816,63024.0,63023.0,0.000824]
[1724718911579,2.79139816,63024.0,63023.0,0.000824]
[1724718911821,2.80539816,63024.0,63023.0,0.000824]
[1724718912047,2.81939816,63024.0,63023.0,0.001824]